fUSD/lending_fUSD_20250522
["ID","MTS","AMOUNT","RATE_DAILY","PERIOD"]
[361988283,1747926639535,-523.53,0.00032876,5]
[361988285,1747926639544,-1000.0,0.00032876,5]
[361988287,1747926639553,-665.65,0.00032876,5]
[361988289,1747926639562,-420.0,0.00032876,5]
[361988290,1747926639571,-577.67,0.00032876,5]
[361988293,1747926639580,-656.6,0.00032876,5]
[361988295,1747926639590,-420.0,0.00032876,5]
[361988296,1747926639599,-420.0,0.00032876,5]
[361988298,1747926639608,-420.0,0.00032876,5]
[361988300,1747926639617,-672.39,0.00032876,5]
[361988302,1747926639626,-436.46,0.00032876,5]
[361988304,1747926639635,-420.0,0.00032876,5]
[361988306,1747926639645,-420.0,0.00032876,5]
[361988308,1747926639655,-420.0,0.00032876,5]
[361988310,1747926639664,-1459.15,0.00032876,5]
[361988312,1747926639673,-420.0,0.00032876,5]
[361988314,1747926639682,-1637.89,0.00032876,5]
[361988317,1747926639691,-420.0,0.00032876,5]
[361988320,1747926639701,-420.0,0.00032876,5]
[361988322,1747926639710,-300.0,0.00032876,5]
[361988324,1747926639719,-420.0,0.00032876,5]
[361988326,1747926639728,-1193.21,0.00032876,5]
[361988328,1747926639737,-420.0,0.00032876,5]
[361988330,1747926639747,-7995.62,0.00032876,5]
[361988332,1747926639756,-689.39,0.00032876,5]
[361988334,1747926639766,-420.0,0.00032876,5]
[361988336,1747926639775,-420.0,0.00032876,5]
[361988338,1747926639784,-420.0,0.00032876,5]
[361988340,1747926639794,-442.55,0.00032876,5]
[361988342,1747926639803,-887.4,0.00032876,5]
[361988344,1747926639813,-831.06,0.00032876,5]
[361988346,1747926639822,-517.45,0.00032876,5]
[361988348,1747926639831,-449.83,0.00032876,5]
[361988349,1747926639840,-500.0,0.00032876,5]
[361988351,1747926639850,-420.0,0.00032876,5]
[361988353,1747926639860,-420.0,0.00032876,5]
[361988355,1747926639869,-420.0,0.00032876,5]
[361988357,1747926639879,-542.73091692,0.00032876,5]
[361988359,1747926639889,-420.0,0.00032876,5]
[361988361,1747926639898,-420.0,0.00032876,5]
[361988364,1747926639909,-420.0,0.00032876,5]
[361988365,1747926639919,-420.0,0.00032876,5]
[361988366,1747926639928,-979.6,0.00032876,5]
[361988367,1747926639938,-752.57,0.00032876,5]
[361988368,1747926639947,-602.72,0.00032876,5]
[361988369,1747926639957,-420.0,0.00032876,5]
[361988370,1747926639967,-425.78,0.00032876,5]
[361988371,1747926639976,-2520.81,0.00032876,5]
[361988372,1747926639985,-420.0,0.00032876,5]
[361988373,1747926639995,-420.0,0.00032876,5]
[361988375,1747926640005,-420.0,0.00032876,5]
[361988376,1747926640014,-420.0,0.00032876,5]
[361988378,1747926640023,-777.72,0.00032876,5]
[361988380,1747926640032,-467.65,0.00032876,5]
[361988382,1747926640042,-452.04,0.00032876,5]
[361988384,1747926640051,-895.02,0.00032876,5]
[361988386,1747926640061,-423.25,0.00032876,5]
[361988388,1747926640070,-2316.58,0.00032876,5]
[361988390,1747926640080,-420.0,0.00032876,5]
[361988392,1747926640089,-4732.71,0.00032876,5]
[361988394,1747926640099,-457.95,0.00032876,5]
[361988396,1747926640108,-992.06,0.00032876,5]
[361988398,1747926640117,-788.08,0.00032876,5]
[361988400,1747926640127,-420.0,0.00032876,5]
[361988402,1747926640136,-680.63,0.00032876,5]
[361988404,1747926640146,-420.0,0.00032876,5]
[361988406,1747926640157,-420.0,0.00032876,5]
[361988408,1747926640166,-1511.17,0.00032876,5]
[361988410,1747926640175,-420.0,0.00032876,5]
[361988412,1747926640185,-420.0,0.00032876,5]
[361988414,1747926640194,-420.0,0.00032876,5]
[361988416,1747926640203,-420.0,0.00032876,5]
[361988417,1747926640212,-420.0,0.00032876,5]
[361988419,1747926640222,-653.61,0.00032876,5]
[361988421,1747926640231,-545.48,0.00032876,5]
[361988423,1747926640240,-275.24956792,0.00032876,5]
[361988425,1747926640250,-6541.15,0.00032876,5]
[361988427,1747926640259,-420.0,0.00032876,5]
[361988429,1747926640269,-574.33,0.00032876,5]
[361988431,1747926640279,-420.0,0.00032876,5]
[361988433,1747926640288,-962.86,0.00032876,5]
[361988436,1747926640298,-403.21421475,0.00032876,5]
[361988437,1747926640310,-420.0,0.00032876,5]
[361988440,1747926640321,-599.96,0.00032876,5]
[361988441,1747926640331,-794.01,0.00032876,5]
[361988443,1747926640340,-979.66,0.00032876,5]
[361988445,1747926640351,-1115.14,0.00032876,5]
[361988447,1747926640360,-420.0,0.00032876,5]
[361988449,1747926640370,-420.0,0.00032876,5]
[361988452,1747926640380,-420.0,0.00032876,5]
[361988453,1747926640391,-645.65,0.00032876,5]
[361988455,1747926640401,-420.0,0.00032876,5]
[361988457,1747926640412,-420.0,0.00032876,5]
[361988459,1747926640423,-420.0,0.00032876,5]
[361988461,1747926640432,-420.0,0.00032876,5]
[361988463,1747926640441,-420.0,0.00032876,5]
[361988465,1747926640451,-420.0,0.00032876,5]
[361988467,1747926640460,-420.0,0.00032876,5]
[361988469,1747926640470,-715.7,0.00032876,5]
[361988471,1747926640479,-180.006096,0.00032876,5]
[361988473,1747926640488,-420.0,0.00032876,5]
[361988475,1747926640497,-420.0,0.00032876,5]
[361988477,1747926640506,-567.1810135,0.00032876,5]
[361988479,1747926640516,-420.0,0.00032876,5]
[361988481,1747926640525,-826.47,0.00032876,5]
[361988483,1747926640534,-1306.67,0.00032876,5]
[361988485,1747926640546,-178.94736653,0.00032876,5]
[361988487,1747926640555,-858.01,0.00032876,5]
[361988489,1747926640564,-420.0,0.00032876,5]
[361988491,1747926640573,-879.7,0.00032876,5]
[361988493,1747926640582,-420.0,0.00032876,5]
[361988495,1747926640591,-687.35,0.00032876,5]
[361988497,1747926640600,-420.0,0.00032876,5]
[361988499,1747926640608,-420.0,0.00032876,5]
[361988501,1747926640618,-420.0,0.00032876,5]
[361988502,1747926640627,-465.68,0.00032876,5]
[361988504,1747926640637,-420.0,0.00032876,5]
[361988506,1747926640646,-420.0,0.00032876,5]
[361988508,1747926640657,-764.92,0.00032876,5]
[361988510,1747926640667,-420.0,0.00032876,5]
[361988512,1747926640676,-1235.11,0.00032876,5]
[361988514,1747926640685,-518.19,0.00032876,5]
[361988516,1747926640694,-580.46,0.00032876,5]
[361988518,1747926640704,-420.0,0.00032876,5]
[361988520,1747926640714,-761.82,0.00032876,5]
[361988522,1747926640724,-420.0,0.00032876,5]
[361988524,1747926640733,-420.0,0.00032876,5]
[361988526,1747926640743,-1008.35,0.00032876,5]
[361988528,1747926640752,-1374.73,0.00032876,5]
[361988530,1747926640762,-883.53,0.00032876,5]
[361988532,1747926640771,-711.56,0.00032876,5]
[361988534,1747926640781,-691.74,0.00032876,5]
[361988536,1747926640790,-420.0,0.00032876,5]
[361988538,1747926640799,-420.0,0.00032876,5]
[361988540,1747926640809,-420.0,0.00032876,5]
[361988542,1747926640819,-2026.32,0.00032876,5]
[361988544,1747926640828,-23523.5,0.00032876,5]
[361988546,1747926640837,-508.53,0.00032876,5]
[361988548,1747926640847,-420.0,0.00032876,5]
[361988550,1747926640857,-420.0,0.00032876,5]
[361988552,1747926640867,-420.0,0.00032876,5]
[361988554,1747926640876,-428.17,0.00032876,5]
[361988556,1747926640885,-1825.06,0.00032876,5]
[361988558,1747926640895,-1178.33,0.00032876,5]
[361988560,1747926640904,-420.0,0.00032876,5]
[361988562,1747926640913,-420.0,0.00032876,5]
[361988564,1747926640922,-420.0,0.00032876,5]
[361988566,1747926640932,-393.47458705,0.00032876,5]
[361988568,1747926640942,-351.42956507,0.00032876,5]
[361988570,1747926640951,-4997.45,0.00032876,5]
[361988572,1747926640960,-592.43,0.00032876,5]
[361988574,1747926640970,-563.08,0.00032876,5]
[361988576,1747926640979,-2030.75,0.00032876,5]
[361988577,1747926640988,-420.0,0.00032876,5]
[361988579,1747926640997,-420.0,0.00032876,2]
[361988581,1747926641006,-420.0,0.00032876,5]
[361988583,1747926641016,-660.43,0.00032876,5]
[361988585,1747926641026,-970.91,0.00032876,5]
[361988587,1747926641035,-965.54,0.00032876,5]
[361988589,1747926641044,-1374.91,0.00032876,5]
[361988591,1747926641054,-420.0,0.00032876,2]
[361988593,1747926641063,-420.0,0.00032876,5]
[361988595,1747926641072,-488.32,0.00032876,5]
[361988597,1747926641081,-553.63,0.00032876,5]
[361988599,1747926641090,-420.0,0.00032876,5]
[361988601,1747926641099,-455.64,0.00032876,5]
[361988603,1747926641109,-1044.08,0.00032876,5]
[361988605,1747926641118,-818.07,0.00032876,5]
[361988607,1747926641128,-420.0,0.00032876,5]
[361988609,1747926641137,-620.23,0.00032876,5]
[361988611,1747926641147,-987.85,0.00032876,5]
[361988613,1747926641158,-420.0,0.00032876,5]
[361988615,1747926641168,-420.0,0.00032876,5]
[361988617,1747926641177,-420.0,0.00032876,5]
[361988619,1747926641187,-420.0,0.00032876,5]
[361988621,1747926641197,-1322.36,0.00032876,5]
[361988623,1747926641206,-1322.36,0.00032876,5]
[361988625,1747926641216,-533.6,0.00032876,5]
[361988627,1747926641226,-420.0,0.00032876,5]
[361988629,1747926641235,-296.55716551,0.00032876,5]
[361988630,1747926641244,-420.0,0.00032876,5]
[361988631,1747926641254,-420.0,0.00032876,5]
[361988632,1747926641263,-1197.59,0.00032876,5]
[361988633,1747926641272,-420.0,0.00032876,5]
[361988634,1747926641282,-870.17,0.00032876,5]
[361988635,1747926641291,-440.44,0.00032876,5]
[361988636,1747926641301,-564.78229387,0.00032876,5]
[361988637,1747926641310,-420.0,0.00032876,5]
[361988639,1747926641325,-1125.09496,0.00032876,5]
[361988640,1747926641335,-1125.09496,0.00032876,5]
[361988642,1747926641345,-1125.09496,0.00032876,5]
[361988644,1747926641355,-1125.09496,0.00032876,5]
[361988646,1747926641366,-420.0,0.00032876,5]
[361988648,1747926641375,-1125.09496,0.00032876,5]
[361988650,1747926641384,-1001.39,0.00032876,5]
[361988652,1747926641395,-1125.09496,0.00032876,5]
[361988668,1747926641529,-1000.0,0.00032962,2]
[361988671,1747926641549,-2930.00664544,0.00032989,2]
[361988673,1747926641559,-674.1864662,0.0003299,2]
[361988675,1747926641568,-312.76267751,0.00032999,2]
[361988677,1747926641577,-1322.36,0.00032999,5]
[361988679,1747926641588,-1007.0,0.00033,6]
[361988681,1747926641597,-1000.0,0.00033,6]
[361988683,1747926641607,-1000.0,0.00033,6]
[361988685,1747926641616,-1000.0,0.00033,6]
[361988687,1747926641626,-629.0,0.00033,9]
[361988689,1747926641635,-1000.0,0.00033,7]
[361988691,1747926641645,-3996.89,0.00033,10]
[361988693,1747926641655,-500.0,0.00033,2]
[361988695,1747926641666,-900.0,0.00033,34]
[361988697,1747926641675,-10717.17825221,0.00033,2]
[361988699,1747926641685,-12757.97830826,0.00033,5]
[361988701,1747926641694,-1000.0,0.00033,2]
[361988703,1747926641704,-458.34,0.00033014,2]
[361988705,1747926641714,-890.55,0.00033014,2]
[361988707,1747926641723,-252.50003374,0.0003305,2]
[361988709,1747926641734,-1188.0,0.00033059,7]
[361988711,1747926641744,-375.0,0.000331,2]
[361988713,1747926641754,-766.0,0.000331,2]
[361988715,1747926641763,-237.0,0.000331,2]
[361988717,1747926641773,-304.69,0.00033106,2]
[361988719,1747926641783,-304.93,0.00033107,2]
[361988721,1747926641793,-301.28,0.00033107,2]
[361988723,1747926641804,-1348.3729324,0.00033124,2]
[361988725,1747926641814,-2022.5593986,0.0003313,2]
[361988727,1747926641824,-2022.5593986,0.00033131,2]
[361988729,1747926641835,-674.1864662,0.00033136,2]
[361988731,1747926641845,-1348.3729324,0.0003314,2]
[361988733,1747926641855,-269.79203781,0.0003314,2]
[361988735,1747926641865,-1322.36,0.0003314,5]
[361988737,1747926641875,-151.0,0.00033144,7]
[361988739,1747926641887,-151.0,0.00033144,7]
[361988741,1747926641897,-151.0,0.00033144,7]
[361988743,1747926641908,-10653.340601,0.00033146,2]
[361988745,1747926641918,-6388.0628655,0.00033146,2]
[361988747,1747926641927,-99123.0780723,0.00033146,2]
[361988749,1747926641937,-860.2585898,0.00033146,2]
[361988751,1747926641947,-150.0,0.00033149,2]
[361988753,1747926641957,-1000.0,0.00033149,120]
[361988755,1747926641966,-1322.36,0.00033149,5]
[361988757,1747926641976,-1322.36,0.00033149,5]
[361988759,1747926641987,-1322.36,0.00033149,5]
[361988761,1747926641996,-1322.36,0.00033149,5]
[361988763,1747926642006,-25000.0,0.00033149,2]
[361988765,1747926642015,-209.95985661,0.0003315,11]
[361988767,1747926642025,-420.0,0.0003315,5]
[361988769,1747926642034,-420.0,0.0003315,5]
[361988771,1747926642044,-420.0,0.0003315,5]
[361988773,1747926642054,-420.0,0.0003315,5]
[361988775,1747926642065,-152.959474,0.0003315,5]
[361988777,1747926642074,-420.0,0.0003315,5]
[361988779,1747926642084,-420.0,0.0003315,5]
[361988781,1747926642094,-632.7,0.0003315,5]
[361988783,1747926642104,-711.5,0.0003315,5]
[361988785,1747926642114,-594.22,0.0003315,5]
[361988787,1747926642123,-451.9,0.0003315,5]
[361988789,1747926642133,-420.0,0.0003315,5]
[361988791,1747926642143,-420.0,0.0003315,5]
[361988793,1747926642153,-420.0,0.0003315,5]
[361988795,1747926642162,-420.0,0.0003315,5]
[361988797,1747926642172,-621.15,0.0003315,5]
[361988799,1747926642182,-420.0,0.0003315,5]
[361988801,1747926642191,-420.0,0.0003315,5]
[361988803,1747926642201,-420.0,0.0003315,5]
[361988805,1747926642211,-502.16,0.0003315,5]
[361988807,1747926642221,-420.0,0.0003315,5]
[361988809,1747926642231,-420.0,0.0003315,5]
[361988811,1747926642241,-420.0,0.0003315,5]
[361988813,1747926642250,-499.32,0.0003315,5]
[361988815,1747926642260,-420.0,0.0003315,5]
[361988817,1747926642270,-601.65,0.0003315,5]
[361988819,1747926642279,-338.60296926,0.0003315,5]
[361988821,1747926642289,-865.28,0.0003315,5]
[361988823,1747926642298,-420.0,0.0003315,5]
[361988825,1747926642308,-420.0,0.0003315,5]
[361988827,1747926642321,-537.74,0.0003315,5]
[361988829,1747926642331,-570.47,0.0003315,5]
[361988831,1747926642340,-420.0,0.0003315,5]
[361988833,1747926642350,-420.0,0.0003315,5]
[361988835,1747926642360,-151.0,0.0003315,7]
[361988837,1747926642370,-420.0,0.0003315,5]
[361988839,1747926642380,-420.0,0.0003315,5]
[361988841,1747926642390,-420.0,0.0003315,5]
[361988843,1747926642400,-420.0,0.0003315,5]
[361988845,1747926642410,-420.0,0.0003315,5]
[361988847,1747926642420,-420.0,0.0003315,5]
[361988849,1747926642430,-701.39,0.0003315,5]
[361988851,1747926642441,-420.0,0.0003315,5]
[361988853,1747926642451,-420.0,0.0003315,5]
[361988855,1747926642461,-420.0,0.0003315,5]
[361988857,1747926642471,-420.0,0.0003315,5]
[361988858,1747926642481,-708.43,0.0003315,5]
[361988859,1747926642491,-459.43,0.0003315,5]
[361988860,1747926642500,-568.8,0.0003315,5]
[361988861,1747926642510,-553.47,0.0003315,5]
[361988862,1747926642519,-420.0,0.0003315,5]
[361988863,1747926642529,-151.0,0.0003315,7]
[361988864,1747926642538,-420.0,0.0003315,5]
[361988865,1747926642548,-420.0,0.0003315,5]
[361988866,1747926642557,-787.25,0.0003315,5]
[361988868,1747926642568,-420.0,0.0003315,5]
[361988870,1747926642578,-420.0,0.0003315,5]
[361988872,1747926642587,-606.08,0.0003315,5]
[361988874,1747926642597,-152.376925,0.0003315,7]
[361988876,1747926642607,-624.69,0.0003315,5]
[361988878,1747926642616,-420.0,0.0003315,5]
[361988880,1747926642625,-420.0,0.0003315,5]
[361988882,1747926642635,-613.15,0.0003315,5]
[361988884,1747926642645,-420.0,0.0003315,5]
[361988886,1747926642654,-420.0,0.0003315,5]
[361988888,1747926642663,-420.0,0.0003315,5]
[361988890,1747926642673,-420.0,0.0003315,5]
[361988892,1747926642683,-420.0,0.0003315,5]
[361988894,1747926642692,-731.12,0.0003315,5]
[361988896,1747926642701,-296.18779902,0.0003315,5]
[361988898,1747926642711,-420.0,0.0003315,5]
[361988900,1747926642720,-545.67,0.0003315,5]
[361988902,1747926642730,-459.28,0.0003315,5]
[361988903,1747926642739,-420.0,0.0003315,5]
[361988906,1747926642749,-420.0,0.0003315,5]
[361988908,1747926642759,-420.0,0.0003315,5]
[361988910,1747926642768,-478.07,0.0003315,5]
[361988912,1747926642778,-420.0,0.0003315,5]
[361988913,1747926642787,-420.0,0.0003315,5]
[361988915,1747926642796,-808.32,0.0003315,5]
[361988917,1747926642806,-753.4,0.0003315,5]
[361988919,1747926642816,-420.0,0.0003315,5]
[361988921,1747926642826,-420.0,0.0003315,5]
[361988923,1747926642835,-420.0,0.0003315,5]
[361988925,1747926642845,-420.0,0.0003315,5]
[361988927,1747926642855,-420.0,0.0003315,5]
[361988929,1747926642865,-420.0,0.0003315,5]
[361988931,1747926642875,-420.0,0.0003315,5]
[361988933,1747926642885,-549.24,0.0003315,5]
[361988935,1747926642895,-581.03,0.0003315,5]
[361988937,1747926642904,-495.45,0.0003315,5]
[361988939,1747926642915,-813.68,0.0003315,5]
[361988941,1747926642924,-420.0,0.0003315,5]
[361988943,1747926642935,-457.61,0.0003315,5]
[361988946,1747926642945,-420.0,0.0003315,5]
[361988947,1747926642955,-543.68,0.0003315,5]
[361988949,1747926642964,-420.0,0.0003315,5]
[361988951,1747926642974,-821.58,0.0003315,5]
[361988953,1747926642984,-689.6,0.0003315,5]
[361988955,1747926642994,-550.52,0.0003315,5]
[361988957,1747926643004,-420.0,0.0003315,5]
[361988959,1747926643014,-477.07,0.0003315,5]
[361988962,1747926643023,-420.0,0.0003315,5]
[361988963,1747926643033,-420.0,0.0003315,5]
[361988965,1747926643043,-420.0,0.0003315,5]
[361988968,1747926643053,-420.0,0.0003315,5]
[361988969,1747926643062,-1984.81,0.0003315,2]
[361988971,1747926643072,-420.0,0.0003315,5]
[361988973,1747926643082,-420.0,0.0003315,5]
[361988975,1747926643091,-529.58,0.0003315,5]
[361988976,1747926643100,-512.67,0.0003315,5]
[361988977,1747926643109,-420.0,0.0003315,5]
[361988979,1747926643119,-1551.23,0.0003315,5]
[361988980,1747926643129,-420.0,0.0003315,5]
[361988982,1747926643138,-420.0,0.0003315,5]
[361988983,1747926643147,-641.57,0.0003315,5]
[361988985,1747926643158,-663.75,0.0003315,5]
[361988986,1747926643168,-420.0,0.0003315,5]
[361988988,1747926643177,-420.0,0.0003315,5]
[361988989,1747926643187,-951.39,0.0003315,5]
[361988991,1747926643197,-485.41,0.0003315,5]
[361988992,1747926643206,-420.0,0.0003315,5]
[361988994,1747926643216,-990.98,0.0003315,5]
[361988995,1747926643225,-422.81086089,0.0003315,5]
[361988996,1747926643235,-420.0,0.0003315,5]
[361988998,1747926643244,-420.0,0.0003315,5]
[361988999,1747926643253,-420.0,0.0003315,5]
[361989001,1747926643263,-420.0,0.0003315,5]
[361989002,1747926643272,-420.0,0.0003315,5]
[361989004,1747926643282,-420.0,0.0003315,5]
[361989005,1747926643292,-420.0,0.0003315,5]
[361989007,1747926643301,-844.57,0.0003315,5]
[361989008,1747926643311,-420.0,0.0003315,5]
[361989009,1747926643325,-932.71,0.0003315,5]
[361989011,1747926643334,-780.21,0.0003315,5]
[361989012,1747926643344,-420.0,0.0003315,5]
[361989014,1747926643354,-780.79,0.0003315,5]
[361989015,1747926643363,-1006.12,0.0003315,5]
[361989017,1747926643372,-420.0,0.0003315,5]
[361989019,1747926643382,-420.0,0.0003315,5]
[361989020,1747926643392,-692.67,0.0003315,5]
[361989022,1747926643402,-420.0,0.0003315,5]
[361989023,1747926643412,-1439.69,0.0003315,5]
[361989025,1747926643422,-420.0,0.0003315,5]
[361989027,1747926643431,-420.0,0.0003315,5]
[361989028,1747926643440,-525.3,0.0003315,5]
[361989030,1747926643450,-420.0,0.0003315,5]
[361989031,1747926643460,-420.0,0.0003315,5]
[361989032,1747926643469,-1000.16,0.0003315,5]
[361989034,1747926643478,-420.0,0.0003315,5]
[361989036,1747926643487,-677.9,0.0003315,5]
[361989037,1747926643497,-817.12,0.0003315,5]
[361989039,1747926643507,-420.0,0.0003315,5]
[361989040,1747926643516,-493.21,0.0003315,5]
[361989042,1747926643525,-420.0,0.0003315,5]
[361989043,1747926643534,-420.0,0.0003315,5]
[361989045,1747926643543,-420.0,0.0003315,5]
[361989047,1747926643552,-420.0,0.0003315,5]
[361989048,1747926643562,-660.88,0.0003315,5]
[361989050,1747926643571,-420.0,0.0003315,5]
[361989051,1747926643580,-624.74,0.0003315,5]
[361989053,1747926643589,-420.0,0.0003315,5]
[361989054,1747926643599,-420.0,0.0003315,5]
[361989056,1747926643607,-420.0,0.0003315,5]
[361989058,1747926643618,-420.0,0.0003315,5]
[361989059,1747926643627,-420.0,0.0003315,5]
[361989061,1747926643636,-1295.62,0.0003315,5]
[361989062,1747926643646,-420.0,0.0003315,5]
[361989064,1747926643657,-420.0,0.0003315,5]
[361989065,1747926643666,-778.17,0.0003315,5]
[361989067,1747926643675,-420.0,0.0003315,5]
[361989068,1747926643685,-451.57,0.0003315,5]
[361989070,1747926643695,-420.0,0.0003315,5]
[361989092,1747926644030,-996.56,0.0003315,5]
[361989093,1747926644040,-420.0,0.0003315,5]
[361989094,1747926644050,-562.63,0.0003315,5]
[361989095,1747926644059,-458.6,0.0003315,5]
[361989096,1747926644069,-420.0,0.0003315,5]
[361989097,1747926644078,-684.29,0.0003315,5]
[361989098,1747926644087,-420.0,0.0003315,5]
[361989099,1747926644096,-894.65,0.0003315,5]
[361989100,1747926644106,-420.0,0.0003315,5]
[361989101,1747926644116,-420.0,0.0003315,5]
[361989102,1747926644125,-420.0,0.0003315,5]
[361989103,1747926644135,-420.0,0.0003315,5]
[361989104,1747926644144,-420.0,0.0003315,5]
[361989105,1747926644153,-609.47,0.0003315,5]
[361989107,1747926644163,-501.18,0.0003315,5]
[361989108,1747926644172,-756.74,0.0003315,5]
[361989109,1747926644182,-420.0,0.0003315,5]
[361989111,1747926644191,-937.26,0.0003315,5]
[361989113,1747926644200,-420.0,0.0003315,5]
[361989115,1747926644209,-514.52751631,0.0003315,5]
[361989117,1747926644219,-795.61,0.0003315,5]
[361989119,1747926644229,-681.7,0.0003315,5]
[361989121,1747926644238,-420.0,0.0003315,5]
[361989123,1747926644247,-711.09,0.0003315,5]
[361989124,1747926644257,-420.0,0.0003315,5]
[361989127,1747926644267,-420.0,0.0003315,5]
[361989129,1747926644276,-420.0,0.0003315,5]
[361989131,1747926644286,-420.0,0.0003315,5]
[361989133,1747926644296,-656.33,0.0003315,5]
[361989135,1747926644305,-578.37,0.0003315,5]
[361989137,1747926644314,-967.48,0.0003315,5]
[361989139,1747926644327,-509.85,0.0003315,5]
[361989141,1747926644336,-835.81,0.0003315,5]
[361989143,1747926644346,-368.30027832,0.0003315,5]
[361989145,1747926644355,-420.0,0.0003315,5]
[361989147,1747926644366,-615.04,0.0003315,5]
[361989148,1747926644375,-302.60826265,0.0003315,5]
[361989150,1747926644385,-420.0,0.0003315,5]
[361989153,1747926644395,-668.71,0.0003315,5]
[361989154,1747926644405,-420.0,0.0003315,5]
[361989156,1747926644415,-691.89,0.0003315,5]
[361989158,1747926644425,-420.0,0.0003315,5]
[361989161,1747926644435,-420.0,0.0003315,5]
[361989163,1747926644444,-483.33,0.0003315,5]
[361989165,1747926644454,-420.0,0.0003315,5]
[361989167,1747926644463,-420.0,0.0003315,5]
[361989169,1747926644472,-490.18,0.0003315,5]
[361989171,1747926644482,-420.0,0.0003315,5]
[361989174,1747926644491,-748.34,0.0003315,5]
[361989176,1747926644500,-458.5,0.0003315,5]
[361989178,1747926644510,-746.09,0.0003315,5]
[361989180,1747926644520,-583.65,0.0003315,5]
[361989182,1747926644529,-655.63,0.0003315,5]
[361989184,1747926644538,-420.0,0.0003315,5]
[361989186,1747926644547,-420.0,0.0003315,5]
[361989188,1747926644556,-613.03,0.0003315,5]
[361989190,1747926644567,-854.89,0.0003315,5]
[361989192,1747926644576,-457.26,0.0003315,5]
[361989194,1747926644586,-420.0,0.0003315,5]
[361989196,1747926644595,-663.99,0.0003315,5]
[361989198,1747926644604,-621.68,0.0003315,5]
[361989199,1747926644614,-420.0,0.0003315,5]
[361989201,1747926644623,-420.0,0.0003315,2]
[361989204,1747926644633,-420.0,0.0003315,5]
[361989205,1747926644642,-800.83,0.0003315,5]
[361989208,1747926644652,-825.86,0.0003315,5]
[361989210,1747926644661,-420.0,0.0003315,5]
[361989211,1747926644672,-712.13,0.0003315,5]
[361989213,1747926644681,-860.16,0.0003315,5]
[361989215,1747926644691,-420.0,0.0003315,5]
[361989217,1747926644700,-436.39,0.0003315,5]
[361989219,1747926644710,-420.0,0.0003315,5]
[361989221,1747926644719,-439.11,0.0003315,5]
[361989223,1747926644728,-420.0,0.0003315,5]
[361989225,1747926644738,-782.81,0.0003315,5]
[361989227,1747926644747,-420.0,0.0003315,5]
[361989229,1747926644757,-745.09,0.0003315,5]
[361989231,1747926644766,-955.66,0.0003315,5]
[361989233,1747926644776,-420.0,0.0003315,5]
[361989236,1747926644786,-775.86,0.0003315,5]
[361989237,1747926644796,-625.21,0.0003315,5]
[361989239,1747926644805,-742.07,0.0003315,5]